bitfinex/quotes_SOLUSD_20260120
["timestamp","ask_amount","ask_price","bid_price","bid_amount"]
[1768938835250,10.16850014,127.41,127.37,5.19422578]
[1768938836240,2.31954157,127.4,127.37,2.5267484]
[1768938837629,10.16901654,127.4,127.37,2.5267484]
[1768938837831,2.31954157,127.39,127.36,2.5267484]
[1768938838034,2.25954158,127.39,127.36,2.66747738]
[1768938838240,2.25954158,127.39,127.35,5.19422578]
[1768938838430,2.25954158,127.39,127.36,2.5267484]
[1768938838629,2.25954158,127.39,127.36,5.19422578]
[1768938840446,10.10955523,127.39,127.36,5.19422578]
[1768938840657,2.31954157,127.38,127.36,2.66747738]
[1768938840859,2.31954157,127.38,127.34,2.5267484]
[1768938841142,2.31954157,127.38,127.33,5.19422578]
[1768938841551,2.31954157,127.38,127.34,5.19422578]
[1768938842629,10.17061,127.38,127.34,5.19422578]
[1768938843434,2.31954157,127.37,127.34,5.19422578]
[1768938844049,2.31954157,127.37,127.33,2.5267484]
[1768938844236,2.31954157,127.37,127.32,5.19422578]
[1768938844433,2.31954157,127.35,127.31,2.66747738]
[1768938844734,30.15294933,127.34,127.29,5.19422578]
[1768938844934,30.15294933,127.34,127.29,2.5267484]
[1768938844935,10.52046936,127.34,127.29,2.5267484]
[1768938845446,10.52046936,127.34,127.29,5.19422578]
[1768938846653,10.17322686,127.33,127.29,5.19422578]
[1768938847155,10.17322686,127.33,127.29,2.5267484]
[1768938847654,2.31954157,127.32,127.28,19.86747738]
[1768938847834,2.31954157,127.31,127.27,2.5267484]
[1768938848028,2.25954158,127.31,127.27,2.5267484]
[1768938848260,2.66747738,127.31,127.27,2.5267484]
[1768938848632,7.85368529,127.33,127.27,2.5267484]
[1768938848633,10.52116267,127.33,127.27,5.19422578]
[1768938848936,10.52116267,127.33,127.28,2.5267484]
[1768938849450,2.66747738,127.32,127.28,2.5267484]
[1768938849648,10.52231989,127.31,127.27,2.5267484]
[1768938850039,12.84186146,127.31,127.27,2.5267484]
[1768938850274,2.31954157,127.29,127.25,2.5267484]
[1768938851050,2.31954157,127.31,127.27,2.5267484]
[1768938851458,2.31954157,127.3,127.27,2.5267484]
[1768938851658,2.31954157,127.3,127.26,2.5267484]
[1768938852455,2.31954157,127.3,127.26,5.19422578]
[1768938853758,2.31954157,127.3,127.26,2.5267484]
[1768938853951,2.31954157,127.3,127.26,5.19422578]
[1768938857165,2.31954157,127.3,127.26,5.21515555]
[1768938860660,2.31954157,127.3,127.26,2.54767817]
[1768938860972,2.47541428,127.29,127.26,2.54767817]
[1768938861669,2.47541428,127.29,127.26,5.21515555]
[1768938863264,2.47541428,127.29,127.26,2.54767817]
[1768938863446,2.47541428,127.29,127.26,5.21515555]
[1768938863852,2.47541428,127.31,127.28,2.54767817]
[1768938864056,2.47541428,127.31,127.27,2.66747738]
[1768938864057,2.47541428,127.31,127.27,5.21515555]
[1768938864862,2.47541428,127.3,127.27,5.21515555]
[1768938865374,2.47541428,127.29,127.26,2.66747738]
[1768938865565,2.47541428,127.28,127.25,5.21515555]
[1768938865875,2.41541427,127.28,127.25,5.21515555]
[1768938866458,2.41541427,127.28,127.25,2.54767817]
[1768938867273,10.52359384,127.29,127.25,2.54767817]
[1768938867479,7.85611646,127.29,127.25,2.54767817]
[1768938867662,12.99900812,127.29,127.25,2.54767817]
[1768938867859,2.47541428,127.28,127.25,2.54767817]
[1768938868177,2.47541428,127.27,127.24,17.2]
[1768938868364,2.47541428,127.27,127.24,19.74767817]
[1768938868765,2.47541428,127.27,127.24,2.54767817]
[1768938869758,12.99969382,127.28,127.24,2.54767817]
[1768938870158,2.47541428,127.28,127.25,2.54767817]
[1768938870981,2.47541428,127.29,127.25,5.21515555]
[1768938872367,2.47541428,127.29,127.26,2.54767817]
[1768938872674,2.47541428,127.29,127.25,5.21515555]
[1768938872883,2.47541428,127.29,127.25,5.21725812]
[1768938873062,2.47541428,127.28,127.25,5.21725812]
[1768938874176,2.47541428,127.27,127.24,2.54767817]
[1768938874376,2.47541428,127.27,127.24,5.21725812]
[1768938876579,2.47541428,127.27,127.23,2.54767817]
[1768938876779,5.14499423,127.25,127.21,5.41725812]
[1768938877171,2.47541428,127.24,127.21,5.41725812]
[1768938877574,2.47541428,127.24,127.21,2.74767817]
[1768938877968,5.14499423,127.25,127.21,2.74767817]
[1768938878289,2.47541428,127.25,127.21,5.41725812]
[1768938878588,2.47541428,127.24,127.21,2.74767817]
[1768938879173,2.47541428,127.24,127.21,5.41725812]
[1768938879884,10.33464551,127.24,127.21,2.86957995]
[1768938880186,2.47541428,127.23,127.21,0.2]
[1768938880370,2.47541428,127.24,127.21,2.86957995]
[1768938880782,17.22,127.29,127.21,2.86957995]
[1768938880783,2.47541428,127.27,127.23,5.21725812]
[1768938880981,2.47541428,127.28,127.26,2.66957995]
[1768938882388,2.47541428,127.28,127.25,2.66957995]
[1768938882683,2.47541428,127.28,127.21,8.20315971]
[1768938882865,2.47541428,127.26,127.23,2.66957995]
[1768938883070,2.47541428,127.26,127.23,5.21725812]
[1768938887094,2.47541428,127.26,127.24,2.66957995]
[1768938887275,2.47541428,127.26,127.23,2.54767817]
[1768938887474,2.47541428,127.26,127.24,2.66957995]
[1768938888474,2.47541428,127.26,127.25,2.66957995]
[1768938889170,2.52707717,127.27,127.25,2.66957995]
[1768938889377,10.3840764,127.28,127.26,2.66957995]
[1768938889576,2.52707717,127.28,127.26,2.66957995]
[1768938890172,2.52707717,127.27,127.24,2.66957995]
[1768938890384,2.52707717,127.27,127.25,2.66957995]
[1768938891980,2.52707717,127.29,127.26,5.12794534]
[1768938892181,2.52707717,127.3,127.28,2.66957995]
[1768938893700,2.52707717,127.3,127.27,2.66957995]
[1768938895094,2.52707717,127.3,127.26,2.66957995]
[1768938895095,2.52707717,127.29,127.26,2.66957995]
[1768938896581,2.52707717,127.28,127.26,2.66957995]
[1768938897081,10.38009615,127.34,127.28,2.45836539]
[1768938897406,5.2878521,127.33,127.31,2.66957995]
[1768938897597,7.81492927,127.33,127.31,2.66957995]
[1768938897906,2.52707717,127.33,127.31,2.66957995]
[1768938898786,7.81391896,127.33,127.31,2.66957995]
[1768938899191,2.52707717,127.33,127.31,2.66957995]
[1768938899595,10.38069367,127.33,127.31,2.66957995]
[1768938899796,2.52707717,127.32,127.3,2.66957995]
[1768938899992,2.46707718,127.32,127.3,2.66957995]
[1768938900191,2.46707718,127.32,127.31,2.66957995]
[1768938900593,2.46707718,127.32,127.3,2.66957995]
[1768938900905,10.32147535,127.32,127.29,2.66957995]
[1768938901097,2.46707718,127.32,127.29,2.66957995]
[1768938901303,2.46707718,127.32,127.3,2.66957995]
[1768938902987,10.32134713,127.32,127.3,2.66957995]
[1768938903301,2.46707718,127.32,127.3,2.66957995]
[1768938904308,2.52707717,127.33,127.31,2.66957995]
[1768938904484,7.81345521,127.34,127.31,2.66957995]
[1768938904681,2.52707717,127.33,127.3,2.66957995]
[1768938904884,2.52707717,127.32,127.29,2.66957995]
[1768938905106,2.52707717,127.32,127.28,2.66957995]
[1768938905401,2.52707717,127.32,127.28,5.12794534]
[1768938906005,2.52707717,127.32,127.29,2.66957995]
[1768938906206,2.52707717,127.3,127.25,5.12794534]
[1768938906405,2.66957995,127.3,127.25,2.66957995]
[1768938906706,10.52614773,127.29,127.24,2.45836539]
[1768938907209,10.52614773,127.29,127.25,2.45836539]
[1768938907388,7.85656778,127.29,127.25,5.12794534]
[1768938907585,19.63491244,127.33,127.26,2.45836539]
[1768938907800,5.2860029,127.32,127.28,2.45836539]
[1768938908002,7.85360873,127.33,127.29,5.12794534]
[1768938908402,2.52707717,127.32,127.29,5.12794534]
[1768938909004,10.38132592,127.32,127.29,2.45836539]
[1768938909216,2.52707717,127.31,127.27,2.45836539]
[1768938909418,2.52707717,127.3,127.26,5.12794534]
[1768938910288,2.52707717,127.3,127.26,2.66957995]
[1768938910496,2.52707717,127.29,127.25,2.45836539]
[1768938910812,10.38315392,127.29,127.25,2.45836539]
[1768938911114,2.52707717,127.29,127.25,5.12794534]
[1768938911491,2.52707717,127.29,127.26,2.45836539]
[1768938912996,10.3831892,127.29,127.25,2.45836539]
[1768938913803,2.52707717,127.28,127.23,5.12794534]
[1768938914114,2.52707717,127.27,127.23,5.12794534]
[1768938914696,2.52707717,127.27,127.24,5.12794534]
[1768938914896,2.52707717,127.28,127.24,5.12794534]
[1768938915103,2.66957995,127.29,127.25,2.40099764]
[1768938915307,10.39920338,127.3,127.26,2.40099764]
[1768938915506,2.54341855,127.29,127.25,5.07057759]
[1768938916015,2.54341855,127.29,127.26,2.66957995]
[1768938916803,10.39953638,127.29,127.23,0.14216157]
[1768938917010,10.39953638,127.29,127.26,2.66957995]
[1768938917503,2.54341855,127.28,127.26,2.66957995]
[1768938919117,2.54341855,127.28,127.25,5.07057759]
[1768938919519,2.54341855,127.28,127.25,2.66957995]
[1768938920320,2.54341855,127.28,127.24,5.07057759]
[1768938920627,10.39933689,127.3,127.27,5.07057759]
[1768938920922,2.54341855,127.31,127.29,2.66957995]
[1768938921127,2.54341855,127.32,127.3,2.66957995]
[1768938921503,2.54341855,127.33,127.31,2.66957995]
[1768938922022,2.54341855,127.33,127.28,2.40099764]
[1768938922320,2.54341855,127.32,127.28,2.66957995]
[1768938922901,2.54341855,127.3,127.28,2.66957995]
[1768938924313,10.39826106,127.31,127.28,5.07057759]
[1768938924831,2.54341855,127.3,127.28,2.66957995]
[1768938925032,10.39893532,127.3,127.27,5.07057759]
[1768938926329,10.39893532,127.3,127.25,2.66957995]
[1768938926330,2.54341855,127.29,127.26,2.66957995]
[1768938927035,2.54341855,127.29,127.26,5.07057759]
[1768938928433,2.54341855,127.28,127.24,5.07057759]
[1768938929007,2.54341855,127.28,127.25,2.40099764]
[1768938931138,10.39969897,127.29,127.26,2.40099764]
[1768938931438,7.85628042,127.29,127.26,5.07057759]
[1768938931612,10.39969897,127.29,127.26,5.07057759]
[1768938932116,2.54341855,127.28,127.23,27.48072937]
[1768938932325,2.54341855,127.27,127.23,22.29057759]
[1768938932526,2.54341855,127.27,127.23,19.62099764]
[1768938932710,2.54341855,127.26,127.22,5.07057759]
[1768938933109,10.40147801,127.26,127.22,5.07057759]
[1768938933310,2.54341855,127.27,127.24,2.40099764]
[1768938933617,2.54341855,127.26,127.22,5.07057759]
[1768938933816,2.54341855,127.26,127.23,5.07057759]
[1768938935042,2.54341855,127.26,127.23,5.07147126]
[1768938935938,2.54341855,127.26,127.24,2.67047362]
[1768938936612,10.4008689,127.27,127.24,5.07147126]
[1768938937034,2.54341855,127.27,127.24,5.07147126]
[1768938938022,7.85631036,127.29,127.26,5.07147126]
[1768938938223,10.39972891,127.29,127.26,5.07147126]
[1768938938618,10.39972891,127.29,127.26,2.67047362]
[1768938941040,2.54341855,127.29,127.27,2.67047362]
[1768938941230,10.39950671,127.29,127.26,5.07147126]
[1768938941414,2.54341855,127.29,127.26,5.07147126]
[1768938941618,10.39951047,127.29,127.26,5.07147126]
[1768938941825,2.54341855,127.29,127.26,5.07147126]
[1768938942155,10.39949995,127.29,127.26,5.07147126]
[1768938942537,2.54341855,127.28,127.23,2.40099764]
[1768938942721,10.39920755,127.3,127.27,2.40099764]
[1768938943053,2.54341855,127.3,127.28,2.67047362]
[1768938943540,10.39895692,127.3,127.27,5.07147126]
[1768938943928,2.54341855,127.3,127.27,5.07147126]
[1768938944348,22.30708388,127.32,127.28,5.13393858]
[1768938944349,10.34187968,127.32,127.28,5.13393858]
[1768938944523,5.29304589,127.31,127.28,5.13393858]
[1768938945448,7.67514073,127.31,127.28,5.13393858]
[1768938945836,15.53040928,127.31,127.28,5.13393858]
[1768938946023,10.23736339,127.31,127.28,5.13393858]
[1768938947234,2.38209484,127.31,127.28,5.13393858]
[1768938947433,7.67480368,127.31,127.28,5.13393858]
[1768938947832,5.29270884,127.31,127.28,5.13393858]
[1768938948031,2.38209484,127.32,127.29,2.67047362]
[1768938948251,7.67479466,127.32,127.29,2.67047362]
[1768938949750,15.52904624,127.32,127.28,5.13393858]
[1768938949942,10.23634642,127.32,127.28,5.13393858]
[1768938951032,2.38209484,127.32,127.29,2.67047362]
[1768938951227,7.67387285,127.32,127.29,2.67047362]
[1768938952144,7.67387285,127.32,127.28,2.46346496]
[1768938952337,2.38209484,127.31,127.29,2.67047362]
[1768938955578,7.67332044,127.31,127.29,2.67047362]
[1768938955748,7.67332044,127.31,127.28,5.13393858]
[1768938956362,2.38209484,127.3,127.27,2.67047362]
[1768938956843,7.67366756,127.3,127.27,2.67047362]
[1768938957239,2.38209484,127.3,127.27,2.67047362]
[1768938958141,7.67365424,127.3,127.27,2.67047362]
[1768938958342,2.38209484,127.3,127.27,2.67047362]
[1768938958847,2.38209484,127.3,127.26,2.52100924]
[1768938958848,2.38209484,127.3,127.28,2.67047362]
[1768938960662,2.38209484,127.3,127.27,2.52100924]
[1768938960850,2.38209484,127.3,127.28,2.67047362]
[1768938964338,2.38209484,127.29,127.27,2.67047362]
[1768938966479,2.38209484,127.29,127.26,2.67047362]
[1768938967174,2.38209484,127.28,127.25,2.67047362]
[1768938967670,7.67622933,127.28,127.25,2.67047362]
[1768938967876,2.38209484,127.28,127.25,5.19148286]
[1768938969768,2.38209484,127.27,127.23,5.19148286]
[1768938969968,7.6759455,127.27,127.23,5.19148286]
[1768938970163,2.38209484,127.26,127.23,5.19148286]
[1768938970406,10.52856361,127.26,127.22,2.52100924]
[1768938970873,7.85739374,127.27,127.23,2.52100924]
[1768938971078,10.52655029,127.29,127.25,2.52100924]
[1768938971282,10.52655029,127.29,127.25,5.19148286]
[1768938971283,7.85607667,127.29,127.25,5.19148286]
[1768938971849,5.29268535,127.28,127.25,2.52100924]
[1768938972270,10.23817151,127.29,127.25,5.19148286]
[1768938972668,10.23817151,127.29,127.25,2.52100924]
[1768938972860,5.29237237,127.28,127.25,5.19148286]
[1768938973060,10.23817151,127.29,127.25,5.19148286]
[1768938974382,2.38209484,127.28,127.25,5.19148286]
[1768938974680,2.38209484,127.29,127.26,5.19148286]
[1768938975081,7.67383021,127.29,127.26,5.19148286]
[1768938975385,2.48933687,127.28,127.24,2.39898835]
[1768938975585,2.48933687,127.28,127.24,5.06946197]
[1768938975768,2.48933687,127.28,127.25,2.39898835]
[1768938975969,2.48933687,127.28,127.25,5.06946197]
[1768938979678,10.34545914,127.29,127.26,2.39898835]
[1768938980057,2.48933687,127.28,127.25,5.06946197]
[1768938981571,10.34611795,127.28,127.25,5.06946197]
[1768938981780,7.7835964,127.27,127.24,2.67047362]
[1768938981978,2.48933687,127.27,127.23,5.06946197]
[1768938982192,7.78361238,127.27,127.23,5.06946197]
[1768938983473,7.78361238,127.27,127.24,2.67047362]
[1768938983681,2.48933687,127.27,127.24,5.06946197]
[1768938985997,10.34666174,127.27,127.24,5.06946197]
[1768938986314,2.48933687,127.26,127.23,2.67047362]
[1768938986674,10.52779849,127.27,127.24,5.06946197]
[1768938986675,10.34666174,127.27,127.24,5.06946197]
[1768938986999,2.48933687,127.27,127.24,5.06946197]
[1768938987702,10.34668737,127.27,127.24,5.06946197]
[1768938987917,10.34668737,127.27,127.24,2.39898835]
[1768938988411,2.48933687,127.26,127.23,2.39898835]
[1768938988875,2.48933687,127.26,127.22,2.67047362]
[1768938989199,2.48933687,127.24,127.21,2.87047362]
[1768938990102,2.48933687,127.24,127.21,2.59898835]
[1768938990289,2.48933687,127.24,127.21,0.2]
[1768938990487,2.48933687,127.23,127.21,0.2]
[1768938990984,2.48933687,127.24,127.21,0.2]
[1768938991904,2.48933687,127.23,127.21,0.2]
[1768938992136,2.48933687,127.22,127.21,0.2]
[1768938992287,2.48933687,127.22,127.2,0.2]
[1768938992999,2.48933687,127.21,127.18,2.67047362]
[1768938993203,2.42933688,127.21,127.18,2.67047362]
[1768938993378,10.5309186,127.22,127.18,5.06946197]
[1768938993583,10.53055087,127.23,127.19,2.39898835]
[1768938994316,7.86007725,127.23,127.19,5.06946197]
[1768938994519,7.86007725,127.23,127.2,2.39898835]
[1768938994821,7.86007725,127.23,127.2,5.06946197]
[1768938995185,10.34941412,127.23,127.2,5.06946197]
[1768938996407,10.34941412,127.23,127.2,2.39898835]
[1768938998514,2.48933687,127.22,127.18,2.39898835]
[1768938998812,2.48933687,127.22,127.19,5.07116315]
[1768939000184,2.48933687,127.22,127.19,2.39898835]
[1768939000402,5.16151167,127.22,127.18,5.07116315]
[1768939000602,13.02196874,127.22,127.18,5.07116315]
[1768939001905,10.34979394,127.22,127.18,5.07116315]
[1768939002213,5.16151167,127.23,127.2,2.39898835]
[1768939002597,5.16151167,127.23,127.19,5.07116315]
[1768939003089,2.48933687,127.22,127.19,5.07116315]
[1768939004915,2.48933687,127.22,127.2,2.6721748]
[1768939005095,2.48933687,127.22,127.19,5.07116315]
[1768939005713,2.48933687,127.22,127.2,2.6721748]
[1768939006619,2.62071667,127.23,127.2,5.23472784]
[1768939008496,2.62071667,127.23,127.21,2.6721748]
[1768939008713,10.48051409,127.23,127.2,5.23472784]
[1768939009411,10.48051409,127.23,127.2,2.6721748]
[1768939014699,10.48051409,127.23,127.2,5.23472784]
[1768939015609,10.48051409,127.23,127.2,2.56255304]
[1768939016200,2.62071667,127.22,127.19,2.6721748]
[1768939016401,2.62071667,127.21,127.18,2.56255304]
[1768939016824,10.48189323,127.21,127.18,5.23472784]
[1768939020116,2.62071667,127.2,127.18,2.6721748]
[1768939020514,2.6721748,127.2,127.16,5.23472784]
[1768939020710,2.62071667,127.18,127.15,2.6721748]
[1768939021019,2.62071667,127.18,127.16,2.6721748]
[1768939021212,2.62071667,127.19,127.16,5.23472784]
[1768939022436,2.62071667,127.18,127.16,5.23472784]
[1768939022613,2.62071667,127.18,127.16,2.6721748]
[1768939026517,2.62071667,127.18,127.15,5.23472784]
[1768939029733,2.62071667,127.17,127.14,5.23472784]
[1768939029910,2.6721748,127.16,127.13,0.2]
[1768939030110,10.53525592,127.18,127.14,5.23472784]
[1768939030322,7.86308112,127.18,127.15,2.6721748]
[1768939031912,2.62071667,127.17,127.15,2.6721748]
[1768939033622,2.58588099,127.17,127.15,2.6721748]
[1768939034218,2.6721748,127.19,127.15,5.23472784]
[1768939034219,7.86255075,127.19,127.15,5.23472784]
[1768939035216,10.53472555,127.19,127.15,5.23472784]
[1768939035538,2.60065456,127.18,127.15,5.23472784]
[1768939037538,10.46356565,127.18,127.15,5.23472784]
[1768939038043,2.60065456,127.17,127.15,2.6721748]
[1768939038356,17.24,127.21,127.16,2.48334991]
[1768939038640,2.60065456,127.2,127.17,5.15552471]
[1768939038944,2.60065456,127.2,127.16,5.15552471]
[1768939040215,10.35248273,127.2,127.16,5.15552471]
[1768939040417,10.31733113,127.2,127.17,2.6721748]
[1768939041443,7.8618409,127.2,127.16,5.15552471]
[1768939041625,10.5340157,127.2,127.16,2.48334991]
[1768939042445,2.60065456,127.19,127.16,2.48334991]
[1768939043442,2.60065456,127.19,127.16,5.15552471]
[1768939044846,2.60065456,127.18,127.14,5.15552471]
[1768939045040,2.60065456,127.18,127.15,5.15552471]
[1768939046149,13.13435105,127.21,127.17,2.48334991]
[1768939046348,27.70217625,127.21,127.17,2.48334991]
[1768939046644,2.60065456,127.2,127.17,2.48334991]
[1768939047325,27.70217625,127.21,127.17,2.48334991]
[1768939047832,2.60065456,127.2,127.17,2.48334991]
[1768939048352,10.46245427,127.2,127.17,2.48334991]
[1768939053254,2.60065456,127.19,127.16,2.6721748]
[1768939053556,2.60065456,127.19,127.15,2.48334991]
[1768939054454,10.46322221,127.19,127.15,2.48334991]
[1768939056746,10.46322221,127.19,127.15,5.15552471]
[1768939056954,10.46322221,127.19,127.16,2.48334991]
[1768939061271,10.46375958,127.18,127.15,2.48334991]
[1768939061451,10.46375958,127.18,127.15,5.15724091]
[1768939062171,2.60065456,127.17,127.14,5.15724091]
[1768939062377,2.60065456,127.17,127.13,5.35724091]
[1768939062540,2.60065456,127.16,127.13,2.68334991]
[1768939062740,2.55737719,127.16,127.13,2.68334991]
[1768939063243,10.42169537,127.16,127.13,2.68334991]
[1768939068467,2.673891,127.17,127.13,2.68334991]
[1768939068773,10.48695689,127.19,127.16,2.4329674]
[1768939069069,7.9243054,127.18,127.15,5.1068584]
[1768939069865,15.78725132,127.18,127.15,5.1068584]
[1768939070172,10.48727457,127.18,127.15,5.1068584]
[1768939071866,7.92532721,127.17,127.14,5.1068584]
[1768939072054,2.62432865,127.17,127.14,2.4329674]
[1768939072243,7.92523216,127.17,127.14,5.1068584]
[1768939075170,2.62432865,127.17,127.14,5.1068584]
[1768939075498,7.92471682,127.17,127.14,5.1068584]
[1768939075848,15.78835824,127.17,127.14,5.1068584]
[1768939076049,10.48797007,127.17,127.14,5.1068584]
[1768939076866,0.7292,127.18,127.15,5.1068584]
[1768939077055,3.35352865,127.18,127.15,5.1068584]
[1768939077372,11.21643679,127.18,127.15,5.1068584]
[1768939081378,7.92578152,127.17,127.14,5.1068584]
[1768939081690,11.21643679,127.18,127.15,5.1068584]
[1768939084073,2.62432865,127.21,127.18,2.4329674]
[1768939084266,7.92548723,127.21,127.18,5.0768584]
[1768939084475,15.78680959,127.21,127.18,5.0768584]
[1768939084653,10.48498092,127.22,127.2,2.673891]
[1768939084972,5.30056537,127.21,127.2,2.673891]
[1768939085152,5.30056537,127.21,127.19,2.673891]
[1768939085349,10.48498092,127.22,127.19,2.673891]
[1768939085549,5.29993329,127.21,127.19,2.673891]
[1768939086073,2.62432865,127.19,127.13,0.2]
[1768939086271,7.92539281,127.19,127.16,5.1068584]
[1768939086466,7.92539281,127.19,127.16,2.4329674]
[1768939087173,15.78787255,127.19,127.16,2.4329674]
[1768939087358,10.48680839,127.19,127.16,2.4329674]
[1768939088689,2.62432865,127.18,127.15,2.4329674]
[1768939088895,10.48724914,127.18,127.15,2.4329674]
[1768939089185,2.62432865,127.18,127.15,2.4329674]
[1768939090384,2.62432865,127.17,127.13,2.6329674]
[1768939091064,10.48805803,127.17,127.13,2.6329674]
[1768939092463,13.16137837,127.18,127.14,2.4329674]
[1768939093588,7.8625368,127.19,127.16,2.4329674]
[1768939093772,5.30217946,127.18,127.16,2.4329674]
[1768939098189,10.48686545,127.19,127.16,2.4329674]
[1768939099195,2.537698,127.18,127.14,2.59884308]
[1768939099500,2.537698,127.17,127.14,2.59884308]
[1768939099665,5.30459263,127.18,127.16,2.59884308]
[1768939101186,7.84229063,127.18,127.15,5.27273408]
[1768939101696,10.39942802,127.2,127.17,2.673891]
[1768939101868,5.30438514,127.19,127.17,2.673891]
[1768939103302,10.39882701,127.21,127.18,5.27273408]
[1768939103469,5.30350698,127.2,127.18,5.27273408]
[1768939105594,10.39882701,127.21,127.18,5.27273408]
[1768939108792,7.83604184,127.2,127.18,2.673891]
[1768939108989,2.537698,127.2,127.18,2.643891]
[1768939109494,2.537698,127.2,127.17,5.27273408]
[1768939109703,2.537698,127.2,127.18,2.673891]
[1768939110896,2.537698,127.2,127.18,2.643891]
[1768939111099,2.537698,127.2,127.17,5.27273408]
[1768939111506,7.83570094,127.2,127.17,5.27273408]
[1768939112583,2.537698,127.2,127.17,5.27273408]
[1768939113204,7.83566116,127.2,127.17,5.27273408]
[1768939113912,2.537698,127.2,127.17,5.27273408]
[1768939116113,2.537698,127.2,127.18,5.27273408]
[1768939116712,2.537698,127.2,127.18,2.59884308]
[1768939117800,10.39893454,127.21,127.18,2.59884308]
[1768939118110,10.39893454,127.21,127.18,5.27273408]
[1768939118283,2.537698,127.2,127.18,2.673891]
[1768939118487,2.537698,127.2,127.17,5.27273408]
[1768939118905,2.537698,127.2,127.17,5.27186239]
[1768939119113,7.83508231,127.2,127.17,5.27186239]
[1768939120008,2.537698,127.2,127.17,5.27186239]
[1768939120604,2.537698,127.2,127.17,2.67301931]
[1768939120998,2.537698,127.2,127.16,5.27186239]
[1768939121198,2.537698,127.2,127.16,2.59884308]
[1768939121505,2.537698,127.2,127.16,5.27186239]
[1768939122213,10.39953485,127.2,127.16,5.27186239]
[1768939124514,10.39953485,127.2,127.17,2.59720859]
[1768939128210,2.537698,127.2,127.17,5.2702279]
[1768939129289,2.49056476,127.19,127.17,5.2702279]
[1768939130410,2.49056476,127.2,127.17,5.2702279]
[1768939130601,2.49056476,127.2,127.18,2.67301931]
[1768939131002,2.49056476,127.22,127.19,5.33292649]
[1768939131206,2.49056476,127.22,127.2,2.67301931]
[1768939132019,2.49056476,127.22,127.2,5.33292649]
[1768939133325,2.49056476,127.23,127.21,5.33292649]
[1768939134923,7.78496679,127.24,127.21,5.33292649]
[1768939135125,2.49056476,127.23,127.21,2.67301931]
[1768939135620,5.29440203,127.24,127.21,2.65990718]
[1768939135621,2.49056476,127.24,127.21,2.65990718]
[1768939135932,2.49056476,127.24,127.21,5.33292649]
[1768939140719,2.49056476,127.24,127.21,5.30292649]
[1768939140925,2.49056476,127.24,127.21,2.67301931]
[1768939142130,2.49056476,127.27,127.23,2.67301931]
[1768939142435,2.49056476,127.27,127.24,2.67301931]
[1768939142623,2.49056476,127.26,127.24,2.67301931]
[1768939143061,7.77988143,127.26,127.24,2.64301931]
[1768939143227,2.49056476,127.26,127.23,5.33292649]
[1768939144244,2.49056476,127.25,127.22,2.67301931]
[1768939145039,2.49056476,127.25,127.22,5.33292649]
[1768939145732,2.49056476,127.24,127.22,2.67301931]
[1768939145929,10.34915819,127.25,127.22,5.33292649]
[1768939146129,10.34915819,127.25,127.2,2.65990718]
[1768939146130,2.49056476,127.24,127.2,2.65990718]
[1768939146438,2.49056476,127.23,127.2,5.33292649]
[1768939147012,2.49056476,127.23,127.2,2.65990718]
[1768939151013,2.49056476,127.23,127.2,5.33292649]
[1768939154741,2.49056476,127.23,127.2,2.65990718]
[1768939158954,2.49056476,127.23,127.2,5.33292649]
[1768939161420,2.49056476,127.23,127.2,2.65990718]
[1768939161829,2.49056476,127.23,127.2,5.33292649]
[1768939163026,2.49056476,127.23,127.2,2.65990718]
[1768939165152,2.49056476,127.23,127.2,5.33292649]
[1768939166229,2.49056476,127.23,127.21,2.6315621]
[1768939166433,2.58279827,127.21,127.18,2.6315621]
[1768939166637,2.58279827,127.2,127.16,5.30458141]
[1768939166832,2.58279827,127.2,127.17,2.6315621]
[1768939173864,5.25581758,127.2,127.17,2.6315621]
[1768939174169,2.58279827,127.2,127.17,2.6315621]
[1768939175880,10.44402454,127.21,127.17,2.67301931]
[1768939176057,10.44402454,127.21,127.18,2.6315621]
[1768939176258,10.44402454,127.21,127.18,5.30458141]
[1768939177051,10.44402454,127.21,127.15,10.53773477]
[1768939177052,2.58279827,127.2,127.17,2.6315621]
[1768939177257,2.58279827,127.2,127.18,5.30458141]
[1768939177574,27.66349234,127.22,127.19,2.6315621]
[1768939178075,13.11498136,127.24,127.21,2.6315621]
[1768939178373,10.44196205,127.24,127.21,2.6315621]
[1768939178573,2.58279827,127.23,127.21,2.6315621]
[1768939178991,2.58279827,127.22,127.17,2.6315621]
[1768939179278,2.58279827,127.22,127.16,5.9565132]
[1768939179279,2.58279827,127.22,127.18,5.30407625]
[1768939179657,2.58279827,127.21,127.18,5.30407625]
[1768939181575,2.58279827,127.21,127.19,2.6315621]
[1768939183166,2.58279827,127.21,127.19,5.30407625]
[1768939183462,10.44199507,127.24,127.21,2.6315621]
[1768939183775,2.58279827,127.24,127.21,2.6315621]
[1768939183965,2.58279827,127.24,127.21,5.30407625]
[1768939187080,7.87497594,127.24,127.21,5.30407625]
[1768939187667,7.87497594,127.24,127.21,2.6315621]
[1768939188680,7.87497594,127.24,127.21,5.30407625]
[1768939189072,2.64462355,127.23,127.2,2.57303544]
[1768939189277,2.64462355,127.23,127.2,5.24554959]
[1768939190870,2.64462355,127.22,127.2,2.57303544]
[1768939193375,2.64462355,127.24,127.21,2.67251415]